[Event "January 2 Early 2024"]
[Site "https://www.chess.com"]
[Date "2024.01.02"]
[Round "1"]
[White "Grabinsky, Aaron"]
[Black "Goldin, Roman"]
[Result "1-0"]
[Board "97"]
[TimeControl "180+1"]
[WhiteFideId "2087090"]
[BlackFideId "2803860"]
[WhiteElo "2834"]
[BlackElo "2438"]
[WhiteTeam "USA"]
[BlackTeam "ISR"]
[WhiteClock "0:01:07"]
[BlackClock "0:00:01"]

1. e4 {[%clk 0:03:00]}  Nc6 {[%clk 0:02:59]} 2. Nf3 {[%clk 0:03:00]}  e5 {[%clk 0:02:57]} 3. Nc3 {[%clk 0:02:59]}  g6 {[%clk 0:02:56]} 4. d4 {[%clk 0:02:59]}  exd4 {[%clk 0:02:56]} 5. Nxd4 {[%clk 0:03:00]}  Bg7 {[%clk 0:02:57]} 6. Be3 {[%clk 0:03:00]}  Nf6 {[%clk 0:02:57]} 7. Be2 {[%clk 0:02:58]}  O-O {[%clk 0:02:56]} 8. Nxc6 {[%clk 0:02:52]}  bxc6 {[%clk 0:02:55]} 9. Qd2 {[%clk 0:02:51]}  Re8 {[%clk 0:02:54]} 10. O-O-O {[%clk 0:02:50]}  Nxe4 {[%clk 0:02:43]} 11. Nxe4 {[%clk 0:02:46]}  Rxe4 {[%clk 0:02:44]} 12. Bf3 {[%clk 0:02:47]}  Re6 {[%clk 0:02:37]} 13. h4 {[%clk 0:02:47]}  Rb8 {[%clk 0:02:29]} 14. c3 {[%clk 0:02:46]}  d5 {[%clk 0:02:23]} 15. h5 {[%clk 0:02:45]}  Qe7 {[%clk 0:02:07]} 16. hxg6 {[%clk 0:02:42]}  hxg6 {[%clk 0:02:07]} 17. Bd4 {[%clk 0:02:32]}  f6 {[%clk 0:01:45]} 18. Qf4 {[%clk 0:02:15]}  c5 {[%clk 0:01:35]} 19. Be3 {[%clk 0:02:07]}  g5 {[%clk 0:01:21]} 20. Qa4 {[%clk 0:02:03]}  c6 {[%clk 0:01:18]} 21. Qc2 {[%clk 0:01:49]}  Re5 {[%clk 0:00:35]} 22. Qa4 {[%clk 0:01:29]}  Rxe3 {[%clk 0:00:33]} 23. fxe3 {[%clk 0:01:25]}  Qxe3+ {[%clk 0:00:32]} 24. Rd2 {[%clk 0:01:21]}  g4 {[%clk 0:00:29]} 25. Bxg4 {[%clk 0:01:16]}  Bh6 {[%clk 0:00:17]} 26. Rxh6 {[%clk 0:01:12]}  Qxh6 {[%clk 0:00:16]} 27. Bxc8 {[%clk 0:01:12]}  Rxc8 {[%clk 0:00:16]} 28. Qg4+ {[%clk 0:01:12]}  Kf7 {[%clk 0:00:09]} 29. Qxc8 {[%clk 0:01:11]}  Qe3 {[%clk 0:00:04]} 30. Qc7+ {[%clk 0:01:11]}  Kg6 {[%clk 0:00:04]} 31. Qxc6 {[%clk 0:01:08]}  Qe1+ {[%clk 0:00:04]} 32. Rd1 {[%clk 0:01:07]}  Qe3+ {[%clk 0:00:01]} 33. Kb1 {[%clk 0:01:07]} 1-0

[Event "January 2 Early 2024"]
[Site "https://www.chess.com"]
[Date "2024.01.02"]
[Round "1"]
[White "Narayanan, Srinath"]
[Black "Shinkarev, M"]
[Result "0-1"]
[Board "99"]
[TimeControl "180+1"]
[WhiteFideId "5018420"]
[BlackFideId "4145348"]
[WhiteElo "2833"]
[BlackElo "2437"]
[WhiteTeam "IND"]
[BlackTeam "RUS"]
[WhiteClock "0:00:00"]
[BlackClock "0:00:42"]

1. Nf3 {[%clk 0:03:00]}  d5 {[%clk 0:02:59]} 2. c4 {[%clk 0:03:01]}  c6 {[%clk 0:02:57]} 3. e3 {[%clk 0:02:56]}  g6 {[%clk 0:02:56]} 4. d4 {[%clk 0:02:55]}  Bg7 {[%clk 0:02:56]} 5. Nc3 {[%clk 0:02:56]}  Nf6 {[%clk 0:02:55]} 6. h3 {[%clk 0:02:56]}  O-O {[%clk 0:02:55]} 7. Be2 {[%clk 0:02:56]}  Re8 {[%clk 0:02:49]} 8. O-O {[%clk 0:02:56]}  Nbd7 {[%clk 0:02:48]} 9. b3 {[%clk 0:02:57]}  Ne4 {[%clk 0:02:39]} 10. Nxe4 {[%clk 0:02:55]}  dxe4 {[%clk 0:02:39]} 11. Nd2 {[%clk 0:02:56]}  e5 {[%clk 0:02:36]} 12. Bb2 {[%clk 0:01:38]}  exd4 {[%clk 0:02:35]} 13. Bxd4 {[%clk 0:01:39]}  Bxd4 {[%clk 0:02:34]} 14. exd4 {[%clk 0:01:40]}  f5 {[%clk 0:02:28]} 15. c5 {[%clk 0:01:38]}  Nf6 {[%clk 0:02:25]} 16. Nc4 {[%clk 0:01:37]}  Be6 {[%clk 0:02:15]} 17. Nd6 {[%clk 0:01:37]}  Re7 {[%clk 0:02:15]} 18. Qd2 {[%clk 0:01:37]}  Bd5 {[%clk 0:02:11]} 19. Rae1 {[%clk 0:01:28]}  Ne8 {[%clk 0:02:10]} 20. Nc4 {[%clk 0:01:27]}  Qc7 {[%clk 0:02:06]} 21. Ne5 {[%clk 0:01:26]}  Rd8 {[%clk 0:02:05]} 22. Qc3 {[%clk 0:01:24]}  Nf6 {[%clk 0:02:01]} 23. f3 {[%clk 0:01:24]}  exf3 {[%clk 0:01:57]} 24. Bxf3 {[%clk 0:01:25]}  Bxf3 {[%clk 0:01:57]} 25. Rxf3 {[%clk 0:01:26]}  Nd5 {[%clk 0:01:57]} 26. Qc4 {[%clk 0:01:24]}  Rde8 {[%clk 0:01:55]} 27. Rf2 {[%clk 0:01:21]}  Kg7 {[%clk 0:01:54]} 28. Qd3 {[%clk 0:01:19]}  h6 {[%clk 0:01:47]} 29. Ref1 {[%clk 0:01:18]}  Rxe5 {[%clk 0:01:43]} 30. dxe5 {[%clk 0:01:19]}  Qxe5 {[%clk 0:01:43]} 31. Qd2 {[%clk 0:01:14]}  Ne3 {[%clk 0:01:40]} 32. Re1 {[%clk 0:01:13]}  f4 {[%clk 0:01:40]} 33. Qd7+ {[%clk 0:01:07]}  Re7 {[%clk 0:01:38]} 34. Qd6 {[%clk 0:01:07]}  g5 {[%clk 0:01:33]} 35. Rd2 {[%clk 0:01:06]}  Qe4 {[%clk 0:01:28]} 36. Qd4+ {[%clk 0:00:56]}  Qxd4 {[%clk 0:01:16]} 37. Rxd4 {[%clk 0:00:57]}  Kf6 {[%clk 0:01:17]} 38. b4 {[%clk 0:00:54]}  Ke5 {[%clk 0:01:15]} 39. Rd8 {[%clk 0:00:52]}  h5 {[%clk 0:01:14]} 40. Re2 {[%clk 0:00:52]}  g4 {[%clk 0:01:14]} 41. Red2 {[%clk 0:00:42]}  gxh3 {[%clk 0:01:08]} 42. gxh3 {[%clk 0:00:43]}  Ke4 {[%clk 0:01:07]} 43. R8d4+ {[%clk 0:00:41]}  Ke5 {[%clk 0:01:06]} 44. Rd7 {[%clk 0:00:41]}  Re6 {[%clk 0:01:05]} 45. R2d6 {[%clk 0:00:37]}  Re8 {[%clk 0:01:05]} 46. Rg6 {[%clk 0:00:24]}  b6 {[%clk 0:01:03]} 47. Rxc6 {[%clk 0:00:14]}  bxc5 {[%clk 0:01:01]} 48. bxc5 {[%clk 0:00:11]}  Rg8+ {[%clk 0:01:00]} 49. Kh1 {[%clk 0:00:11]}  Ke4 {[%clk 0:01:00]} 50. Rd2 {[%clk 0:00:10]}  Kf3 {[%clk 0:01:00]} 51. Rb2 {[%clk 0:00:05]}  Rg3 {[%clk 0:00:58]} 52. Rd6 {[%clk 0:00:05]}  Rxh3+ {[%clk 0:00:58]} 53. Rh2 {[%clk 0:00:05]}  Rg3 {[%clk 0:00:59]} 54. c6 {[%clk 0:00:04]}  Rg7 {[%clk 0:00:57]} 55. Rh3+ {[%clk 0:00:04]}  Kg4 {[%clk 0:00:55]} 56. Rd7 {[%clk 0:00:05]}  Rg6 {[%clk 0:00:54]} 57. c7 {[%clk 0:00:03]}  Rc6 {[%clk 0:00:54]} 58. Rxe3 {[%clk 0:00:02]}  fxe3 {[%clk 0:00:52]} 59. Kg2 {[%clk 0:00:03]}  Rc2+ {[%clk 0:00:52]} 60. Kf1 {[%clk 0:00:03]}  Kf3 {[%clk 0:00:53]} 61. Rf7+ {[%clk 0:00:03]}  Ke4 {[%clk 0:00:53]} 62. a4 {[%clk 0:00:04]}  a5 {[%clk 0:00:52]} 63. Ke1 {[%clk 0:00:04]}  h4 {[%clk 0:00:50]} 64. Rh7 {[%clk 0:00:05]}  Rc1+ {[%clk 0:00:49]} 65. Ke2 {[%clk 0:00:05]}  Rc2+ {[%clk 0:00:50]} 66. Kd1 {[%clk 0:00:05]}  Rc3 {[%clk 0:00:48]} 67. Rxh4+ {[%clk 0:00:06]}  Kd3 {[%clk 0:00:48]} 68. Rh2 {[%clk 0:00:03]}  Rxc7 {[%clk 0:00:47]} 69. Rd2+ {[%clk 0:00:04]}  Ke4 {[%clk 0:00:45]} 70. Ra2 {[%clk 0:00:02]}  Kd3 {[%clk 0:00:44]} 71. Ra3+ {[%clk 0:00:02]}  Ke4 {[%clk 0:00:44]} 72. Rb3 {[%clk 0:00:03]}  Rc4 {[%clk 0:00:43]} 73. Ra3 {[%clk 0:00:02]}  Rb4 {[%clk 0:00:43]} 74. Ke1 {[%clk 0:00:02]}  Kf3 {[%clk 0:00:42]} 75. Ra1 {[%clk 0:00:02]}  Rb2 {[%clk 0:00:42]} 76. Kf1 {[%clk 0:00:03]}  Rh2 {[%clk 0:00:41]} 77. Kg1 {[%clk 0:00:03]}  Rg2+ {[%clk 0:00:42]} 78. Kf1 {[%clk 0:00:00]}  e2+ {[%clk 0:00:42]} 0-1

[Event "January 2 Early 2024"]
[Site "https://www.chess.com"]
[Date "2024.01.02"]
[Round "1"]
[White "Jovic, Stanoje"]
[Black "Bryakin, Mikhail"]
[Result "0-1"]
[Board "100"]
[TimeControl "180+1"]
[WhiteFideId "905020"]
[BlackFideId "4165314"]
[WhiteElo "2436"]
[BlackElo "2832"]
[WhiteTeam "SRB"]
[BlackTeam "SRB"]
[WhiteClock "0:00:00"]
[BlackClock "0:00:45"]

1. c4 {[%clk 0:03:00]}  Nf6 {[%clk 0:02:53]} 2. g3 {[%clk 0:03:00]}  g6 {[%clk 0:02:53]} 3. Bg2 {[%clk 0:03:00]}  Bg7 {[%clk 0:02:53]} 4. Nc3 {[%clk 0:03:01]}  O-O {[%clk 0:02:54]} 5. Nf3 {[%clk 0:03:01]}  d6 {[%clk 0:02:55]} 6. O-O {[%clk 0:03:01]}  Nc6 {[%clk 0:02:55]} 7. d3 {[%clk 0:03:01]}  e5 {[%clk 0:02:55]} 8. Rb1 {[%clk 0:03:01]}  h6 {[%clk 0:02:49]} 9. b4 {[%clk 0:03:00]}  Be6 {[%clk 0:02:49]} 10. b5 {[%clk 0:03:00]}  Ne7 {[%clk 0:02:49]} 11. e4 {[%clk 0:03:00]}  Qd7 {[%clk 0:02:49]} 12. a4 {[%clk 0:02:55]}  c6 {[%clk 0:02:49]} 13. a5 {[%clk 0:02:53]}  c5 {[%clk 0:02:41]} 14. Nd5 {[%clk 0:02:51]}  Nfxd5 {[%clk 0:02:39]} 15. cxd5 {[%clk 0:02:50]}  Bh3 {[%clk 0:02:39]} 16. Nd2 {[%clk 0:02:50]}  Bxg2 {[%clk 0:02:39]} 17. Kxg2 {[%clk 0:02:49]}  f5 {[%clk 0:02:37]} 18. Nc4 {[%clk 0:02:49]}  f4 {[%clk 0:02:33]} 19. f3 {[%clk 0:02:48]}  h5 {[%clk 0:02:27]} 20. a6 {[%clk 0:02:28]}  b6 {[%clk 0:02:26]} 21. Rb2 {[%clk 0:02:20]}  Bh6 {[%clk 0:02:24]} 22. Kh1 {[%clk 0:01:57]}  Kh7 {[%clk 0:02:22]} 23. Rg1 {[%clk 0:01:53]}  fxg3 {[%clk 0:02:22]} 24. Rxg3 {[%clk 0:01:49]}  Bxc1 {[%clk 0:02:20]} 25. Qxc1 {[%clk 0:01:48]}  Rf4 {[%clk 0:02:21]} 26. Qg1 {[%clk 0:01:38]}  Raf8 {[%clk 0:02:21]} 27. Qg2 {[%clk 0:01:37]}  R8f6 {[%clk 0:02:07]} 28. Rb1 {[%clk 0:01:17]}  Kh6 {[%clk 0:02:03]} 29. Kg1 {[%clk 0:01:10]}  Qe8 {[%clk 0:01:35]} 30. Kf2 {[%clk 0:01:03]}  Qf7 {[%clk 0:01:35]} 31. Ke2 {[%clk 0:01:02]}  h4 {[%clk 0:01:27]} 32. Rh3 {[%clk 0:00:54]}  g5 {[%clk 0:01:28]} 33. Ne3 {[%clk 0:00:50]}  Rg6 {[%clk 0:01:27]} 34. Rg1 {[%clk 0:00:45]}  Kg7 {[%clk 0:01:26]} 35. Ng4 {[%clk 0:00:38]}  Kf8 {[%clk 0:01:25]} 36. Ne3 {[%clk 0:00:36]}  Ke8 {[%clk 0:01:25]} 37. Rb1 {[%clk 0:00:31]}  Kd7 {[%clk 0:01:25]} 38. Nc4 {[%clk 0:00:27]}  Kc7 {[%clk 0:01:25]} 39. Ne3 {[%clk 0:00:25]}  Qe8 {[%clk 0:01:19]} 40. Nc4 {[%clk 0:00:22]}  Qd7 {[%clk 0:01:19]} 41. Ne3 {[%clk 0:00:21]}  Ng8 {[%clk 0:01:16]} 42. Nc4 {[%clk 0:00:19]}  Nf6 {[%clk 0:01:16]} 43. Ne3 {[%clk 0:00:19]}  Nh5 {[%clk 0:01:15]} 44. Kd2 {[%clk 0:00:19]}  Rff6 {[%clk 0:01:14]} 45. Nf5 {[%clk 0:00:17]}  Rxf5 {[%clk 0:00:58]} 46. exf5 {[%clk 0:00:17]}  Qxf5 {[%clk 0:00:59]} 47. Qg4 {[%clk 0:00:16]}  Qf4+ {[%clk 0:00:59]} 48. Kc3 {[%clk 0:00:12]}  Nf6 {[%clk 0:00:59]} 49. Qe6 {[%clk 0:00:06]}  Ne4+ {[%clk 0:00:45]} 50. fxe4 {[%clk 0:00:05]}  Rxe6 {[%clk 0:00:46]} 51. dxe6 {[%clk 0:00:05]}  Kd8 {[%clk 0:00:45]} 52. Rg1 {[%clk 0:00:00]}  Ke7 {[%clk 0:00:45]} 0-1

[Event "January 2 Early 2024"]
[Site "https://www.chess.com"]
[Date "2024.01.02"]
[Round "1"]
[White "Bashirli, Saadat"]
[Black "Panchenko, Dmitry"]
[Result "0-1"]
[Board "102"]
[TimeControl "180+1"]
[WhiteFideId "13429990"]
[BlackFideId "4169158"]
[WhiteElo "2432"]
[BlackElo "2830"]
[WhiteTeam "AZE"]
[BlackTeam "RUS"]
[WhiteClock "0:00:19"]
[BlackClock "0:01:57"]

1. d4 {[%clk 0:02:05]}  d5 {[%clk 0:02:59]} 2. e3 {[%clk 0:02:04]}  Nf6 {[%clk 0:02:59]} 3. f4 {[%clk 0:02:02]}  c5 {[%clk 0:02:58]} 4. c3 {[%clk 0:02:00]}  Nc6 {[%clk 0:02:57]} 5. Bd3 {[%clk 0:01:58]}  Bg4 {[%clk 0:02:57]} 6. Nf3 {[%clk 0:01:57]}  e6 {[%clk 0:02:56]} 7. O-O {[%clk 0:01:57]}  Bd6 {[%clk 0:02:55]} 8. Nbd2 {[%clk 0:01:57]}  cxd4 {[%clk 0:02:55]} 9. cxd4 {[%clk 0:01:56]}  O-O {[%clk 0:02:54]} 10. Qe1 {[%clk 0:01:55]}  Rc8 {[%clk 0:02:51]} 11. a3 {[%clk 0:01:55]}  Qb6 {[%clk 0:02:43]} 12. b4 {[%clk 0:01:55]}  a5 {[%clk 0:02:36]} 13. b5 {[%clk 0:01:53]}  Ne7 {[%clk 0:02:36]} 14. a4 {[%clk 0:01:52]}  Bb4 {[%clk 0:02:33]} 15. Ba3 {[%clk 0:01:49]}  Rc3 {[%clk 0:02:31]} 16. Bxb4 {[%clk 0:01:47]}  axb4 {[%clk 0:02:32]} 17. Qe2 {[%clk 0:01:44]}  Rfc8 {[%clk 0:02:23]} 18. Rfb1 {[%clk 0:01:43]}  Qd6 {[%clk 0:02:20]} 19. h3 {[%clk 0:01:38]}  Bf5 {[%clk 0:02:19]} 20. Bxf5 {[%clk 0:01:37]}  Nxf5 {[%clk 0:02:20]} 21. Nf1 {[%clk 0:01:30]}  b3 {[%clk 0:02:19]} 22. N3d2 {[%clk 0:01:27]}  Qb4 {[%clk 0:02:18]} 23. g4 {[%clk 0:01:19]}  Nxe3 {[%clk 0:02:10]} 24. Nxe3 {[%clk 0:01:17]}  b2 {[%clk 0:02:10]} 25. Ra2 {[%clk 0:01:16]}  Qxd4 {[%clk 0:02:10]} 26. Nf1 {[%clk 0:01:09]}  Rxe3 {[%clk 0:02:06]} 27. Qxe3 {[%clk 0:01:08]}  Qxe3+ {[%clk 0:02:06]} 28. Nxe3 {[%clk 0:01:07]}  Rc1+ {[%clk 0:02:07]} 29. Kf2 {[%clk 0:00:21]}  Rxb1 {[%clk 0:02:07]} 30. Nd1 {[%clk 0:00:20]}  Rxd1 {[%clk 0:02:05]} 31. Rxb2 {[%clk 0:00:21]}  Ra1 {[%clk 0:02:04]} 32. Rc2 {[%clk 0:00:21]}  Ne4+ {[%clk 0:02:03]} 33. Ke3 {[%clk 0:00:20]}  g6 {[%clk 0:02:02]} 34. Rc8+ {[%clk 0:00:20]}  Kg7 {[%clk 0:02:02]} 35. Ra8 {[%clk 0:00:20]}  Nd6 {[%clk 0:01:58]} 36. Kd4 {[%clk 0:00:18]}  Nxb5+ {[%clk 0:01:58]} 37. Kc5 {[%clk 0:00:19]}  Nc3 {[%clk 0:01:58]} 38. Kb6 {[%clk 0:00:19]}  Rxa4 {[%clk 0:01:57]} 39. Kxb7 {[%clk 0:00:19]}  Rxa8 {[%clk 0:01:57]} 0-1

[Event "January 2 Early 2024"]
[Site "https://www.chess.com"]
[Date "2024.01.02"]
[Round "1"]
[White "Vallejo Diaz, Javier"]
[Black "Gokerkan, Cem Kaan"]
[Result "0-1"]
[Board "104"]
[TimeControl "180+1"]
[WhiteFideId "2256398"]
[BlackFideId "6336760"]
[WhiteElo "2430"]
[BlackElo "2825"]
[WhiteTeam "ESP"]
[BlackTeam "TUR"]
[WhiteClock "0:00:00"]
[BlackClock "0:00:17"]

1. e4 {[%clk 0:03:00]}  e5 {[%clk 0:02:59]} 2. Nf3 {[%clk 0:03:00]}  Nf6 {[%clk 0:03:00]} 3. Nxe5 {[%clk 0:02:53]}  d5 {[%clk 0:03:00]} 4. Nf3 {[%clk 0:02:54]}  dxe4 {[%clk 0:03:00]} 5. Ne5 {[%clk 0:02:38]}  Bc5 {[%clk 0:02:55]} 6. Nc4 {[%clk 0:02:34]}  O-O {[%clk 0:02:52]} 7. Be2 {[%clk 0:02:33]}  Nc6 {[%clk 0:02:45]} 8. O-O {[%clk 0:02:31]}  Re8 {[%clk 0:02:38]} 9. Nc3 {[%clk 0:02:30]}  Nd4 {[%clk 0:02:27]} 10. Ne3 {[%clk 0:02:27]}  Qd6 {[%clk 0:02:09]} 11. Nb5 {[%clk 0:02:13]}  Nxe2+ {[%clk 0:01:57]} 12. Qxe2 {[%clk 0:02:12]}  Qc6 {[%clk 0:01:57]} 13. Nc3 {[%clk 0:02:04]}  Be6 {[%clk 0:01:48]} 14. h3 {[%clk 0:02:04]}  Rad8 {[%clk 0:01:48]} 15. b3 {[%clk 0:02:01]}  Qd7 {[%clk 0:01:44]} 16. Rd1 {[%clk 0:01:59]}  Bxh3 {[%clk 0:01:14]} 17. gxh3 {[%clk 0:01:58]}  Qxh3 {[%clk 0:01:15]} 18. Qf1 {[%clk 0:01:58]}  Qh5 {[%clk 0:01:14]} 19. Bb2 {[%clk 0:01:44]}  Re5 {[%clk 0:01:13]} 20. Ne2 {[%clk 0:01:42]}  Rg5+ {[%clk 0:01:08]} 21. Ng3 {[%clk 0:01:41]}  Qg6 {[%clk 0:01:02]} 22. Kg2 {[%clk 0:01:00]}  h5 {[%clk 0:00:57]} 23. Qh1 {[%clk 0:00:55]}  Ng4 {[%clk 0:00:45]} 24. Qh4 {[%clk 0:00:34]}  Rd7 {[%clk 0:00:29]} 25. Nxg4 {[%clk 0:00:08]}  Rxg4 {[%clk 0:00:29]} 26. Qh3 {[%clk 0:00:06]}  h4 {[%clk 0:00:29]} 27. d4 {[%clk 0:00:04]}  Bd6 {[%clk 0:00:28]} 28. Rg1 {[%clk 0:00:03]}  e3 {[%clk 0:00:26]} 29. Kf1 {[%clk 0:00:02]}  exf2 {[%clk 0:00:26]} 30. Rg2 {[%clk 0:00:02]}  hxg3 {[%clk 0:00:19]} 31. d5 {[%clk 0:00:00]}  Re7 {[%clk 0:00:17]} 0-1

[Event "January 2 Early 2024"]
[Site "https://www.chess.com"]
[Date "2024.01.02"]
[Round "1"]
[White "Morales Garcia, Sergio Joshafatt"]
[Black "Bordi, Kevin"]
[Result "1-0"]
[Board "106"]
[TimeControl "180+1"]
[WhiteFideId "5106249"]
[BlackFideId "621862"]
[WhiteElo "2427"]
[BlackElo "2821"]
[WhiteTeam "MEX"]
[BlackTeam "MNC"]
[WhiteClock "0:01:14"]
[BlackClock "0:01:14"]

1. d4 {[%clk 0:03:00]}  d5 {[%clk 0:02:58]} 2. c4 {[%clk 0:03:00]}  c6 {[%clk 0:02:58]} 3. Nf3 {[%clk 0:03:01]}  Nf6 {[%clk 0:02:58]} 4. Nc3 {[%clk 0:03:01]}  Bf5 {[%clk 0:02:58]} 5. cxd5 {[%clk 0:02:58]}  Nxd5 {[%clk 0:02:57]} 6. e3 {[%clk 0:02:56]}  Nd7 {[%clk 0:02:56]} 7. Bc4 {[%clk 0:02:54]}  N7f6 {[%clk 0:02:55]} 8. O-O {[%clk 0:02:53]}  e6 {[%clk 0:02:55]} 9. h3 {[%clk 0:02:53]}  Bd6 {[%clk 0:02:55]} 10. Qe2 {[%clk 0:02:52]}  g5 {[%clk 0:02:54]} 11. Nxg5 {[%clk 0:02:48]}  h6 {[%clk 0:02:47]} 12. e4 {[%clk 0:02:41]}  hxg5 {[%clk 0:02:32]} 13. exf5 {[%clk 0:02:36]}  Qc7 {[%clk 0:02:24]} 14. Bxg5 {[%clk 0:02:18]}  Nf4 {[%clk 0:01:52]} 15. Bxf4 {[%clk 0:02:08]}  Bxf4 {[%clk 0:01:51]} 16. fxe6 {[%clk 0:02:08]}  O-O-O {[%clk 0:01:47]} 17. exf7 {[%clk 0:02:04]}  Nd5 {[%clk 0:01:33]} 18. Bxd5 {[%clk 0:01:53]}  cxd5 {[%clk 0:01:29]} 19. Qe6+ {[%clk 0:01:53]}  Qd7 {[%clk 0:01:26]} 20. Rfe1 {[%clk 0:01:38]}  Rhf8 {[%clk 0:01:19]} 21. Qxd7+ {[%clk 0:01:30]}  Kxd7 {[%clk 0:01:20]} 22. Nxd5 {[%clk 0:01:28]}  Bd6 {[%clk 0:01:19]} 23. Nf6+ {[%clk 0:01:20]}  Kc6 {[%clk 0:01:19]} 24. Rac1+ {[%clk 0:01:20]}  Kb5 {[%clk 0:01:14]} 25. Re8 {[%clk 0:01:14]} 1-0

[Event "January 2 Early 2024"]
[Site "https://www.chess.com"]
[Date "2024.01.02"]
[Round "1"]
[White "Omariev, Maksim"]
[Black "Van Foreest, Lucas"]
[Result "0-1"]
[Board "108"]
[TimeControl "180+1"]
[WhiteFideId "4193423"]
[BlackFideId "1039792"]
[WhiteElo "2424"]
[BlackElo "2819"]
[WhiteTeam "RUS"]
[BlackTeam "NED"]
[WhiteClock "0:00:54"]
[BlackClock "0:02:15"]

1. g4 {[%clk 0:02:09]}  g5 {[%clk 0:02:54]} 2. d4 {[%clk 0:02:07]}  d5 {[%clk 0:02:54]} 3. Bxg5 {[%clk 0:02:06]}  Bxg4 {[%clk 0:02:53]} 4. Bg2 {[%clk 0:02:04]}  c6 {[%clk 0:02:51]} 5. c3 {[%clk 0:02:04]}  Nd7 {[%clk 0:02:51]} 6. Nd2 {[%clk 0:02:04]}  Ngf6 {[%clk 0:02:51]} 7. Qb3 {[%clk 0:02:01]}  Qb6 {[%clk 0:02:51]} 8. f3 {[%clk 0:02:01]}  Bh5 {[%clk 0:02:47]} 9. e4 {[%clk 0:02:01]}  Rg8 {[%clk 0:02:46]} 10. h4 {[%clk 0:01:49]}  h6 {[%clk 0:02:43]} 11. Bxf6 {[%clk 0:01:45]}  Rxg2 {[%clk 0:02:40]} 12. Qxb6 {[%clk 0:01:32]}  axb6 {[%clk 0:02:41]} 13. Be5 {[%clk 0:01:32]}  Nxe5 {[%clk 0:02:38]} 14. dxe5 {[%clk 0:01:33]}  Bg7 {[%clk 0:02:18]} 15. f4 {[%clk 0:01:24]}  O-O-O {[%clk 0:02:17]} 16. Nh3 {[%clk 0:01:06]}  Re2+ {[%clk 0:02:16]} 17. Kd1 {[%clk 0:00:54]}  dxe4 {[%clk 0:02:15]} 0-1

[Event "January 2 Early 2024"]
[Site "https://www.chess.com"]
[Date "2024.01.02"]
[Round "1"]
[White "Bazeev, German"]
[Black "Perossa, Nicolas"]
[Result "1-0"]
[Board "109"]
[TimeControl "180+1"]
[WhiteFideId "24119350"]
[BlackFideId "2850520"]
[WhiteElo "2818"]
[BlackElo "2424"]
[WhiteTeam "RUS"]
[BlackTeam "ITA"]
[WhiteClock "0:01:38"]
[BlackClock "0:00:00"]

1. d4 {[%clk 0:03:00]}  Nf6 {[%clk 0:02:55]} 2. Bg5 {[%clk 0:03:01]}  e6 {[%clk 0:02:51]} 3. e4 {[%clk 0:03:01]}  h6 {[%clk 0:02:46]} 4. Bxf6 {[%clk 0:02:59]}  Qxf6 {[%clk 0:02:47]} 5. c3 {[%clk 0:02:59]}  d6 {[%clk 0:02:47]} 6. Nf3 {[%clk 0:02:59]}  e5 {[%clk 0:02:44]} 7. Nbd2 {[%clk 0:02:58]}  Bg4 {[%clk 0:02:43]} 8. Qb3 {[%clk 0:02:55]}  Nd7 {[%clk 0:02:17]} 9. Qxb7 {[%clk 0:02:48]}  Rb8 {[%clk 0:02:17]} 10. Qxc7 {[%clk 0:02:48]}  Be7 {[%clk 0:02:17]} 11. h3 {[%clk 0:02:42]}  Bd8 {[%clk 0:01:50]} 12. Qxa7 {[%clk 0:02:28]}  Bxf3 {[%clk 0:01:22]} 13. Nxf3 {[%clk 0:02:29]}  Qg6 {[%clk 0:01:08]} 14. dxe5 {[%clk 0:02:06]}  Qxe4+ {[%clk 0:00:14]} 15. Qe3 {[%clk 0:02:04]}  Qxe3+ {[%clk 0:00:14]} 16. fxe3 {[%clk 0:02:05]}  Rxb2 {[%clk 0:00:15]} 17. O-O-O {[%clk 0:01:40]}  Nxe5 {[%clk 0:00:00]} 18. Kxb2 {[%clk 0:01:38]} 1-0

[Event "January 2 Early 2024"]
[Site "https://www.chess.com"]
[Date "2024.01.02"]
[Round "1"]
[White "Alvarado, Carlos"]
[Black "Gabrielian, Artur"]
[Result "0-1"]
[Board "114"]
[TimeControl "180+1"]
[WhiteFideId "3800555"]
[BlackFideId "4131002"]
[WhiteElo "2417"]
[BlackElo "2806"]
[WhiteTeam "PER"]
[BlackTeam "RUS"]
[WhiteClock "0:01:48"]
[BlackClock "0:02:02"]

1. d4 {[%clk 0:02:59]}  d5 {[%clk 0:02:58]} 2. Nf3 {[%clk 0:02:55]}  e6 {[%clk 0:02:57]} 3. c4 {[%clk 0:02:55]}  Nf6 {[%clk 0:02:55]} 4. Nc3 {[%clk 0:02:54]}  Be7 {[%clk 0:02:55]} 5. Bf4 {[%clk 0:02:52]}  O-O {[%clk 0:02:54]} 6. e3 {[%clk 0:02:53]}  b6 {[%clk 0:02:55]} 7. cxd5 {[%clk 0:02:50]}  Nxd5 {[%clk 0:02:55]} 8. Bg3 {[%clk 0:02:47]}  c5 {[%clk 0:02:51]} 9. Nxd5 {[%clk 0:02:42]}  Qxd5 {[%clk 0:02:51]} 10. dxc5 {[%clk 0:02:35]}  Qxd1+ {[%clk 0:02:45]} 11. Rxd1 {[%clk 0:02:34]}  Bxc5 {[%clk 0:02:46]} 12. Bd3 {[%clk 0:02:32]}  Bb7 {[%clk 0:02:43]} 13. O-O {[%clk 0:02:31]}  Nc6 {[%clk 0:02:42]} 14. Ne5 {[%clk 0:02:30]}  Nxe5 {[%clk 0:02:37]} 15. Bxe5 {[%clk 0:02:31]}  f6 {[%clk 0:02:35]} 16. Bc3 {[%clk 0:02:31]}  Rfd8 {[%clk 0:02:33]} 17. Bc4 {[%clk 0:02:30]}  Kf7 {[%clk 0:02:34]} 18. Bb3 {[%clk 0:02:28]}  a5 {[%clk 0:02:33]} 19. Rxd8 {[%clk 0:02:28]}  Rxd8 {[%clk 0:02:32]} 20. Rd1 {[%clk 0:02:28]}  Rxd1+ {[%clk 0:02:31]} 21. Bxd1 {[%clk 0:02:29]}  g5 {[%clk 0:02:21]} 22. Kf1 {[%clk 0:02:25]}  f5 {[%clk 0:02:18]} 23. Bf3 {[%clk 0:02:24]}  Bxf3 {[%clk 0:02:17]} 24. gxf3 {[%clk 0:02:24]}  Kg6 {[%clk 0:02:15]} 25. h3 {[%clk 0:02:25]}  Be7 {[%clk 0:02:13]} 26. a4 {[%clk 0:02:23]}  Bf6 {[%clk 0:02:12]} 27. Bxf6 {[%clk 0:02:08]}  Kxf6 {[%clk 0:02:11]} 28. Ke2 {[%clk 0:02:04]}  Kg6 {[%clk 0:02:10]} 29. Kd3 {[%clk 0:02:03]}  Kh5 {[%clk 0:02:09]} 30. Kc4 {[%clk 0:02:00]}  Kh4 {[%clk 0:02:09]} 31. Kb5 {[%clk 0:02:00]}  Kxh3 {[%clk 0:02:09]} 32. Kxb6 {[%clk 0:02:01]}  Kg2 {[%clk 0:02:07]} 33. Kxa5 {[%clk 0:02:01]}  h5 {[%clk 0:02:07]} 34. Kb6 {[%clk 0:02:01]}  h4 {[%clk 0:02:08]} 35. a5 {[%clk 0:02:02]}  h3 {[%clk 0:02:08]} 36. a6 {[%clk 0:02:03]}  h2 {[%clk 0:02:09]} 37. a7 {[%clk 0:02:04]}  h1=Q {[%clk 0:02:09]} 38. a8=Q {[%clk 0:02:04]}  Kxf2 {[%clk 0:02:09]} 39. b4 {[%clk 0:02:03]}  Qxf3 {[%clk 0:02:04]} 40. Qd8 {[%clk 0:01:59]}  Qxe3+ {[%clk 0:02:03]} 41. Kb7 {[%clk 0:01:58]}  g4 {[%clk 0:02:03]} 42. b5 {[%clk 0:01:58]}  g3 {[%clk 0:02:03]} 43. Qh4 {[%clk 0:01:55]}  Qe4+ {[%clk 0:02:01]} 44. Qxe4 {[%clk 0:01:48]}  fxe4 {[%clk 0:02:02]} 0-1